bitfinex/quotes_ETHUSD_20250114
["timestamp","ask_amount","ask_price","bid_price","bid_amount"]
[1736835398146,9.28748676,3171.7,3171.6,16.41718142]
[1736835399305,9.28748676,3171.7,3171.6,13.26420142]
[1736835401752,9.28369195,3171.7,3171.6,13.26420142]
[1736835406946,9.27369195,3171.7,3171.6,16.41718142]
[1736835408559,7.69899195,3171.7,3171.6,16.41718142]
[1736835409641,7.69899195,3171.7,3171.6,16.96718142]
[1736835409860,7.69899195,3171.7,3171.6,17.28318142]
[1736835410393,7.69899195,3171.7,3171.6,27.16088893]
[1736835411405,7.69899195,3171.7,3171.6,25.47968893]
[1736835411591,7.69899195,3171.7,3171.6,26.40720081]
[1736835412498,7.69899195,3171.7,3171.6,26.11286653]
[1736835412789,7.69899195,3171.7,3171.6,24.00466653]
[1736835413145,7.69899195,3171.7,3171.6,23.88166653]
[1736835413352,7.69899195,3171.7,3171.6,23.70366653]
[1736835415946,7.69899195,3171.7,3171.6,16.41718142]
[1736835416476,7.69899195,3171.7,3171.6,16.27918142]
[1736835416683,7.69899195,3171.7,3171.6,16.41718142]
[1736835417545,9.32119195,3171.7,3171.6,13.12620142]
[1736835417745,9.32119195,3171.7,3171.6,13.24920142]
[1736835418182,9.32119195,3171.7,3171.6,13.26420142]
[1736835419165,9.32119195,3171.7,3171.6,13.58020142]
[1736835421506,9.32119195,3171.7,3171.6,16.73318142]
[1736835421910,9.32119195,3171.7,3171.6,24.01966653]
[1736835422899,7.69899195,3171.7,3171.6,26.20326653]
[1736835423085,1.5945,3172.8,3172.7,17.72086511]
[1736835423410,0.61652008,3173.0,3172.9,6.17419]
[1736835423616,1.5945,3173.1,3173.0,6.17409]
[1736835423907,1.5945,3173.1,3173.0,6.34099141]
[1736835424111,0.005,3173.4,3173.3,2.0225]
[1736835424516,0.005,3173.4,3173.3,2.18879267]
[1736835426193,0.005,3173.4,3173.3,5.18879267]
[1736835426415,0.005,3173.4,3173.3,8.34008267]
[1736835427912,0.005,3173.4,3173.3,20.88656778]
[1736835435717,0.005,3173.4,3173.3,22.53336778]
[1736835436519,0.005,3173.4,3173.3,20.88656778]
[1736835438844,0.005,3173.4,3173.3,21.43656778]
[1736835439039,0.005,3173.4,3173.3,23.08336778]
[1736835439552,0.005,3173.4,3173.3,26.88374443]
[1736835439925,0.005,3173.4,3173.3,61.88374443]
[1736835442459,0.005,3173.4,3173.3,64.91170724]
[1736835443453,0.005,3173.4,3173.3,61.88374443]
[1736835443661,0.005,3173.4,3173.3,64.91170724]
[1736835444561,0.005,3173.4,3173.3,61.88374443]
[1736835445120,0.005,3173.4,3173.3,61.1775563]
[1736835446545,0.005,3173.4,3173.3,64.20551911]
[1736835447642,0.005,3173.4,3173.3,61.1775563]
[1736835448563,0.005,3173.4,3173.3,64.20551911]
[1736835449061,0.005,3173.4,3173.3,61.4935563]
[1736835449241,0.005,3173.4,3173.3,64.52151911]
[1736835449429,0.005,3173.4,3173.3,64.20551911]
[1736835449971,0.005,3173.4,3173.3,65.46685911]
[1736835450437,0.005,3173.4,3173.3,65.78285911]
[1736835450771,0.1629162,3174.0,3173.9,8.17319]
[1736835450957,0.1629162,3174.0,3173.9,11.33815281]
[1736835451144,0.1629162,3174.0,3173.9,11.50177155]
[1736835451465,0.1629162,3174.0,3173.9,46.50177155]
[1736835454506,0.1629162,3174.0,3173.9,11.50177155]
[1736835454872,0.1629162,3174.0,3173.9,51.76177155]
[1736835457968,0.1629162,3174.0,3173.9,16.76177155]
[1736835458601,0.1629162,3174.0,3173.9,51.76177155]
[1736835461533,0.1629162,3174.0,3173.9,10.43111874]
[1736835461695,1.7604162,3174.0,3173.9,7.42361874]
[1736835462030,1.93645782,3174.0,3173.9,7.56061874]
[1736835462840,1.93645782,3174.0,3173.9,10.56061874]
[1736835463018,1.7604162,3174.0,3173.9,10.56061874]
[1736835466829,1.7604162,3174.0,3173.9,5.30061874]
[1736835469732,1.7604162,3174.0,3173.9,8.47380874]
[1736835469943,0.1629162,3174.0,3173.9,8.47380874]
[1736835470363,0.1629162,3174.0,3173.9,43.47380874]
[1736835472735,0.1629162,3174.0,3173.9,48.73380874]
[1736835477504,0.1629162,3174.0,3173.9,48.58180874]
[1736835477707,1.7604162,3174.0,3173.9,10.56811874]
[1736835478010,1.7604162,3174.0,3173.9,10.57561874]
[1736835479299,1.7604162,3174.0,3173.9,10.58311874]
[1736835480207,1.7604162,3174.0,3173.9,10.56061874]
[1736835481512,1.93645782,3174.0,3173.9,10.56061874]
[1736835481951,1.93645782,3174.0,3173.9,10.42361874]
[1736835482155,1.93645782,3174.0,3173.9,10.56061874]
[1736835482652,1.7604162,3174.0,3173.9,10.56061874]
[1736835483651,1.7604162,3174.0,3173.9,10.56811874]
[1736835484245,1.7604162,3174.0,3173.9,45.56811874]
[1736835484749,1.7604162,3174.0,3173.9,56.02029385]
[1736835485053,0.1629162,3174.0,3173.9,56.02029385]
[1736835486556,0.1629162,3174.0,3173.9,21.02029385]
[1736835487232,0.1629162,3174.0,3173.9,22.55649385]
[1736835489725,0.1629162,3174.0,3173.9,57.55649385]
[1736835491562,0.1629162,3174.0,3173.9,21.02029385]
[1736835495560,0.1629162,3174.0,3173.9,56.02029385]
[1736835498470,0.1629162,3174.0,3173.9,21.02029385]
[1736835499162,0.1629162,3174.0,3173.9,56.02029385]
[1736835499472,0.1629162,3174.0,3173.9,56.33629385]
[1736835502467,0.1629162,3174.0,3173.9,56.88629385]
[1736835502799,0.1629162,3174.0,3173.9,59.13398198]
[1736835503567,6.2e-06,3174.0,3173.9,59.13398198]
[1736835503762,6.2e-06,3174.0,3173.9,59.42831626]
[1736835504285,6.2e-06,3174.0,3173.9,62.53860478]
[1736835504504,1.6388,3175.1,3175.0,2.0225]
[1736835504677,1.6388,3175.1,3175.0,5.32237124]
[1736835505301,1.6388,3175.1,3175.0,8.47197124]
[1736835507306,0.03937007,3176.0,3175.0,8.47197124]
[1736835507307,0.03937007,3176.0,3175.9,2.0]
[1736835507463,0.25,3176.1,3175.9,2.16238301]
[1736835507664,0.33747,3176.1,3175.9,2.16238301]
[1736835507903,1.5023,3176.0,3175.9,2.16238301]
[1736835508105,1.7523,3176.0,3175.9,2.16238301]
[1736835508305,1.5023,3176.0,3175.9,2.16238301]
[1736835509107,2.12042882,3176.0,3175.9,2.16238301]
[1736835509306,2.3662187,3176.0,3175.9,2.16238301]
[1736835509514,2.6162187,3176.0,3175.9,2.16238301]
[1736835509805,2.3662187,3176.0,3175.9,2.16238301]
[1736835510008,2.6162187,3176.0,3175.9,2.16238301]
[1736835510373,2.6162187,3176.0,3175.9,2.29938301]
[1736835510577,2.3662187,3176.0,3175.9,2.29938301]
[1736835510774,2.6162187,3176.0,3175.9,2.29938301]
[1736835512208,2.65558156,3176.0,3175.9,2.29938301]
[1736835512582,2.65558156,3176.0,3175.9,2.137]
[1736835513399,5.80419156,3176.0,3175.9,2.0]
[1736835513599,1.5245,3175.6,3175.5,2.0]
[1736835513805,1.76631909,3175.6,3175.5,2.0]
[1736835513976,1.76631909,3175.6,3175.5,2.162221]
[1736835514180,1.76631909,3175.6,3175.5,2.0]
[1736835514391,1.76631909,3175.6,3175.5,2.162221]
[1736835516911,4.91532909,3175.6,3175.5,2.162221]
[1736835517115,5.16532909,3175.6,3175.5,2.162221]
[1736835517295,5.16532909,3175.6,3175.5,2.0]
[1736835519715,5.12596,3175.6,3175.5,2.0]
[1736835520103,1.72695,3175.6,3175.5,2.0]
[1736835520317,1.5245,3175.6,3175.5,2.15680709]
[1736835523127,0.8639187,3176.0,3175.9,2.0]
[1736835523284,0.61812882,3176.0,3175.9,2.15659013]
[1736835525897,0.65749028,3176.0,3175.9,2.15659013]
[1736835528240,2.40788931,3176.0,3175.9,2.15659013]
[1736835528397,2.40788931,3176.0,3175.9,2.0]
[1736835528899,2.36852785,3176.0,3175.9,2.0]
[1736835529992,2.36852785,3176.0,3175.9,2.15659013]
[1736835530232,2.36852785,3176.0,3175.9,2.0]
[1736835531328,2.36852785,3176.0,3175.9,2.15635023]
[1736835531527,2.36852785,3176.0,3175.9,2.0]
[1736835532416,2.36852785,3176.0,3175.9,2.15635023]
[1736835532613,2.36852785,3176.0,3175.9,2.0]
[1736835532832,2.40789223,3176.0,3175.9,2.0]
[1736835533312,2.40789223,3176.0,3175.9,2.15635023]
[1736835533623,2.40789223,3176.0,3175.9,2.0]
[1736835533941,2.1896932,3176.0,3175.9,2.0]
[1736835534144,2.15032882,3176.0,3175.9,2.15635023]
[1736835535342,0.61812882,3176.0,3175.9,2.15635023]
[1736835542170,0.61433676,3176.0,3175.9,2.15635023]
[1736835543652,0.61433676,3176.0,3175.9,5.15635023]
[1736835544153,0.61433676,3176.0,3175.9,8.30506023]
[1736835544453,1.6181,3176.5,3176.4,2.0]
[1736835544834,1.6181,3176.5,3176.4,2.15550345]
[1736835545029,3.14766,3177.0,3176.9,2.0]
[1736835545246,3.54850478,3177.0,3176.9,2.0]
[1736835545439,3.54850478,3177.0,3176.9,2.15519644]
[1736835545650,2.63842272,3177.0,3176.9,2.15519644]
[1736835546267,0.61947794,3177.0,3176.9,2.15519644]
[1736835546865,0.61947794,3177.0,3176.9,5.15519644]
[1736835548024,0.61947794,3177.0,3176.9,11.35337925]
[1736835548340,0.61947794,3177.0,3176.9,2.29219644]
[1736835549230,0.61947794,3177.0,3176.9,2.29969644]
[1736835549925,0.61947794,3177.0,3176.9,2.29219644]
[1736835550128,0.1629162,3177.2,3176.9,2.29219644]
[1736835552365,0.1629162,3177.2,3177.0,0.137]
[1736835552534,0.1629162,3177.2,3177.1,0.15423112]
[1736835552735,0.80683899,3177.2,3177.1,0.15423112]
[1736835553275,0.1629162,3177.2,3177.1,0.15423112]
[1736835555577,0.20226258,3177.2,3177.1,0.15423112]
[1736835555864,0.1629162,3177.2,3177.1,1.81663112]
[1736835556045,0.1629162,3177.2,3177.1,0.15423112]
[1736835557467,0.20226247,3177.2,3177.1,0.15423112]
[1736835557675,0.1629162,3177.2,3177.1,0.15423112]
[1736835558276,0.20226245,3177.2,3177.1,0.15423112]
[1736835558569,0.1629162,3177.2,3177.1,0.15423112]
[1736835560576,0.20226199,3177.2,3177.1,0.15423112]
[1736835561580,0.1629162,3177.2,3177.1,0.15423112]
[1736835562150,0.20226191,3177.2,3177.1,0.15423112]
[1736835562348,0.1629162,3177.2,3177.1,0.15423112]
[1736835562876,0.20226197,3177.2,3177.1,0.15423112]
[1736835563382,0.20226193,3177.2,3177.1,0.15423112]
[1736835564182,0.1629162,3177.2,3177.1,0.15423112]
[1736835567165,0.1629162,3177.2,3177.1,4.96415112]
[1736835567576,0.1629162,3177.2,3177.1,4.98665112]
[1736835570190,0.1629162,3177.2,3177.1,1.83913112]
[1736835571693,0.1629162,3177.2,3177.1,0.15423112]
[1736835571999,0.20225889,3177.2,3177.1,0.15423112]
[1736835572973,1.80385889,3177.2,3177.1,0.15423112]
[1736835573171,2.04608381,3177.2,3177.1,0.29123112]
[1736835575270,1.7645162,3177.2,3177.1,0.29123112]
[1736835575473,0.1629162,3177.2,3177.1,0.29123112]
[1736835575895,0.1629162,3177.2,3177.1,4.93263112]
[1736835577112,0.1629162,3177.2,3177.1,3.29123112]
[1736835577690,0.1629162,3177.2,3177.1,0.29123112]
[1736835577881,0.20226148,3177.2,3177.1,0.29123112]
[1736835578313,0.1629162,3177.2,3177.1,0.29123112]
[1736835580920,0.20226228,3177.2,3177.1,0.29123112]
[1736835581080,0.2022623,3177.2,3177.1,0.29123112]
[1736835581285,0.1629162,3177.2,3177.1,0.29123112]
[1736835583199,1.80386244,3177.2,3177.1,0.15423112]
[1736835583400,1.80386244,3177.2,3177.1,0.137]
[1736835583401,2.04608772,3177.2,3177.1,0.137]
[1736835583612,2.04608772,3177.2,3177.1,0.2826545]
[1736835586019,5.07405053,3177.2,3177.1,0.1456545]
[1736835586224,3.47245053,3177.2,3176.9,2.0]
[1736835586391,4.75652,3177.0,3176.9,2.0]
[1736835586589,4.79587201,3177.0,3176.9,2.0]
[1736835586999,4.75652,3177.0,3176.9,2.0]
[1736835587184,4.79587319,3177.0,3176.9,2.0]
[1736835587388,4.75652,3177.0,3176.9,2.0]
[1736835587628,5.67139084,3177.0,3176.9,2.0]
[1736835588325,5.71074456,3177.0,3176.9,2.0]
[1736835589407,5.67139084,3177.0,3176.9,2.0]
[1736835590092,5.71074512,3177.0,3176.9,2.0]
[1736835590296,5.67139084,3177.0,3176.9,2.0]
[1736835590727,5.71074425,3177.0,3176.9,2.0]
[1736835591121,5.67139084,3177.0,3176.9,2.0]
[1736835595107,5.71074272,3177.0,3176.9,2.0]
[1736835600618,5.7107427,3177.0,3176.9,2.0]
[1736835601748,5.67139084,3177.0,3176.9,2.0]
[1736835603340,2.52377084,3177.0,3176.9,2.0]
[1736835603539,3.3103662,3177.2,3176.9,2.0]
[1736835603705,3.18697256,3177.0,3176.9,2.0]
[1736835604033,3.18697256,3177.0,3176.9,2.14691169]
[1736835604239,4.76357256,3177.0,3176.9,2.14691169]
[1736835605316,5.28122144,3177.0,3176.9,2.14691169]
[1736835609462,1.5766,3176.2,3176.1,3.0]
[1736835609610,1.5766,3176.2,3176.0,2.75726917]
[1736835609611,4.72501,3176.2,3176.0,2.75726917]
[1736835609810,1.5766,3176.4,3176.0,2.75726917]
[1736835610014,1.5766,3176.4,3176.1,3.0]
[1736835610556,1.5766,3176.4,3176.3,2.0]
[1736835610751,3.1482,3176.5,3176.3,2.0]
[1736835612222,0.62323606,3176.4,3176.3,2.0]
[1736835614773,1.5766,3176.9,3176.3,2.0]
[1736835615635,5.11100246,3177.2,3176.7,2.0]
[1736835615973,5.4407341,3177.2,3176.7,2.0]
[1736835616983,0.62549861,3176.8,3176.7,2.0]
[1736835619132,0.1629162,3177.2,3177.1,2.0]
[1736835620072,0.80001914,3177.2,3177.1,2.0]
[1736835620564,0.80001914,3177.2,3177.1,3.542]
[1736835620767,0.80001914,3177.2,3177.1,6.679]
[1736835622125,0.80001914,3177.2,3177.1,5.137]
[1736835622741,0.80001914,3177.2,3177.1,2.0]
[1736835622942,1.07049959,3177.2,3177.1,2.0]
[1736835623876,4.21791959,3177.2,3177.1,2.14185836]
[1736835624472,5.97921959,3177.2,3177.1,0.14185836]
[1736835624761,3.14782,3176.8,3176.7,0.137]
[1736835624965,3.462602,3176.8,3176.7,0.137]
[1736835625274,3.462602,3176.8,3176.7,0.279135]
[1736835625469,5.26325778,3176.8,3176.7,0.142135]
[1736835625968,5.51325778,3176.8,3176.7,0.142135]
[1736835626474,3.14851,3176.1,3176.0,2.75726917]
[1736835626644,6.21583981,3176.1,3176.0,2.75726917]
[1736835626833,3.06732981,3176.1,3175.6,0.137]
[1736835627061,3.14871,3175.9,3175.6,0.137]
[1736835627269,0.0393669,3175.8,3175.5,2.0]
[1736835628067,0.03936761,3175.8,3175.5,2.0]
[1736835629069,0.62818903,3175.7,3175.5,2.0]
[1736835629235,0.0393676,3175.6,3175.5,2.0]
[1736835631346,0.0393676,3175.6,3175.1,2.0]
[1736835631549,0.2893676,3175.6,3175.1,2.0]
[1736835631762,3.14922,3175.4,3175.1,2.0]
[1736835631947,0.35429545,3175.3,3175.1,2.0]
[1736835632356,0.35429545,3175.3,3175.2,0.14377464]
[1736835632552,0.35429545,3175.3,3175.1,2.0]
[1736835632871,0.314922,3175.3,3175.2,0.17721684]
[1736835633045,0.03937344,3175.3,3175.2,0.17721684]
[1736835633370,0.03937344,3175.3,3175.1,2.0]
[1736835633772,3.14914,3175.5,3175.2,0.17721684]
[1736835634274,0.03937335,3175.4,3175.2,0.17721684]
[1736835635059,3.1493,3175.3,3175.2,0.17721684]
[1736835635262,5.10936734,3175.3,3175.2,0.17721684]
[1736835635463,3.14953,3175.1,3174.8,2.0]
[1736835635640,3.14953,3175.1,3174.5,2.0]
[1736835635641,3.1497,3174.9,3174.5,2.0]
[1736835635835,0.03938032,3174.8,3174.5,5.0]
[1736835636973,0.0393795,3175.0,3174.5,3.0]
[1736835637281,0.30673423,3174.9,3174.5,5.0]
[1736835637583,0.0393795,3174.8,3174.5,5.0]
[1736835637739,1.6805795,3174.8,3174.5,5.0]
[1736835638473,4.8303795,3174.8,3174.5,2.0]
[1736835639079,1.6805795,3174.8,3174.5,2.0]
[1736835639399,3.34865137,3174.7,3174.5,2.0]
[1736835639585,0.03938186,3174.6,3174.5,2.0]
[1736835639741,3.34865137,3174.7,3174.5,2.0]
[1736835640482,0.03938186,3174.6,3174.5,2.0]
[1736835640842,3.1502,3174.4,3174.1,2.0]
[1736835641167,5.1459059,3174.3,3174.2,0.17194567]
[1736835641741,1.9956059,3174.3,3173.7,3.0]
[1736835641942,3.15049,3174.2,3173.7,3.0]
[1736835642142,0.03938961,3174.1,3173.6,3.05945628]
[1736835642394,3.1508,3173.8,3173.6,3.05945628]
[1736835642560,0.03939185,3173.7,3173.6,3.05945628]
[1736835643246,3.15061,3174.0,3173.6,3.05945628]
[1736835643555,0.340061,3173.9,3173.5,2.0]
[1736835644358,0.03939251,3173.8,3173.5,2.0]
[1736835644590,4.79201,3173.8,3173.5,2.0]
[1736835644950,1.6412,3173.8,3173.5,2.0]
[1736835645162,0.63269413,3173.7,3173.5,2.0]
[1736835645563,0.89408964,3173.7,3173.5,2.0]
[1736835647258,0.89408964,3173.7,3173.6,0.17406946]
[1736835648363,0.93348382,3173.7,3173.6,0.17406946]
[1736835648563,4.08437382,3173.7,3173.6,0.17406946]
[1736835650407,0.93348382,3173.7,3173.6,0.17406946]
[1736835650736,0.89408964,3173.7,3173.6,0.17406946]
[1736835654839,4.04497964,3173.7,3173.6,0.17406946]
[1736835657040,4.08437343,3173.7,3173.6,0.17406946]
[1736835661011,4.33437343,3173.7,3173.6,0.17406946]
[1736835661340,1.8276,3173.6,3173.0,2.0]
[1736835661537,3.15132,3173.3,3173.0,2.0]
[1736835661739,0.03939946,3173.2,3173.0,2.0]
[1736835662041,3.19086946,3173.2,3172.9,5.26]
[1736835662339,4.72909,3173.1,3173.0,0.17436642]
[1736835662636,4.76849294,3173.1,3173.0,0.17436642]
[1736835662948,5.24534223,3173.1,3173.0,0.17436642]
[1736835663108,5.20593929,3173.1,3172.7,2.0]
[1736835663443,5.20593929,3173.1,3172.8,0.17447717]
[1736835664528,5.83577605,3173.1,3172.8,0.17447717]
[1736835666556,0.03940293,3173.0,3172.8,0.17447717]
[1736835666705,0.5875179,3172.9,3172.8,0.17447717]
[1736835668338,5.35892676,3173.1,3172.8,0.17447717]
[1736835668526,5.35513709,3173.1,3172.8,0.17447717]
[1736835669110,0.03940301,3173.0,3172.8,0.17447717]
[1736835669318,0.62983676,3173.1,3172.9,1.6541]
[1736835669553,0.62983676,3173.1,3172.9,1.82898385]
[1736835669554,0.03939989,3173.0,3172.9,1.82898385]
[1736835669737,0.62983676,3173.1,3172.9,1.82898385]
[1736835670137,3.15112,3173.5,3172.9,1.82898385]
[1736835670351,3.15112,3173.5,3173.1,2.0]
[1736835670761,3.15112,3173.5,3173.2,0.17471774]
[1736835671063,0.6312221,3173.3,3173.2,0.17471774]
[1736835671570,0.67062,3173.3,3173.2,0.17471774]
[1736835672565,5.939444,3173.3,3173.2,0.17471774]
[1736835672867,8.67747281,3173.3,3173.0,5.26]
[1736835673032,3.15149,3173.1,3173.0,5.26]
[1736835676362,3.15149,3173.1,3172.7,5.26]
[1736835676579,3.15176,3172.9,3172.7,5.26]
[1736835676740,0.03940277,3172.8,3172.7,5.26]
[1736835677301,4.77909,3172.8,3172.7,5.43495261]
[1736835677592,4.7789,3173.0,3172.7,5.43495261]
[1736835677769,3.1516,3173.0,3172.7,5.43495261]
[1736835677956,3.1516,3173.0,3172.8,1.5042]
[1736835678401,3.1516,3173.0,3172.9,0.17513591]
[1736835679690,3.46676,3173.0,3172.7,5.26]
[1736835679870,3.19114266,3172.9,3172.7,5.26]
[1736835681079,1.6273,3172.8,3172.7,5.26]
[1736835681283,4.77909,3172.8,3172.7,5.26]
[1736835682396,4.77909,3172.8,3172.6,2.0]
[1736835683298,3.15188,3172.7,3172.6,2.0]
[1736835684201,3.15258,3172.0,3171.8,5.26]
[1736835684401,0.0394131,3171.9,3171.8,7.26]
[1736835684924,0.03941335,3172.1,3171.8,7.26]
[1736835685126,3.15218,3172.5,3171.8,7.55464254]
[1736835685329,3.15218,3172.5,3171.9,1.5042]
[1736835685489,3.15218,3172.5,3171.9,4.5042]
[1736835686325,3.15218,3172.5,3171.9,4.6412]
[1736835686714,0.64384971,3172.3,3172.0,0.58909125]
[1736835687686,0.64384971,3172.3,3172.2,2.0]
[1736835687918,3.15175,3172.9,3172.2,2.0]
[1736835687919,1.94246,3173.0,3172.2,11.7642]
[1736835688115,0.03940701,3173.3,3172.8,1.5042]
[1736835688353,3.15123,3173.4,3172.8,1.5042]
[1736835689023,3.15123,3173.4,3172.9,0.29444871]
[1736835689332,0.63911459,3173.1,3172.9,0.29444871]
[1736835689514,0.03940005,3173.0,3172.9,8.55444871]
[1736835689829,0.03940005,3173.0,3172.9,8.73023895]
[1736835690327,0.03940005,3173.0,3172.9,5.73023895]
[1736835690491,3.15159,3173.0,3172.9,5.73023895]
[1736835690695,3.98974674,3173.0,3172.9,5.73023895]
[1736835691391,0.63911459,3173.1,3172.9,5.73010886]
[1736835692446,0.63911459,3173.1,3173.0,1.6121]
[1736835692719,0.63911459,3173.1,3173.0,0.17542271]
[1736835692720,3.79062459,3173.1,3173.0,0.17542271]
[1736835693451,3.79062459,3173.1,3173.0,0.46974133]
[1736835694864,8.3814874,3173.1,3173.0,0.46974133]
[1736835695018,0.25,3173.0,3172.2,4.4882991]
[1736835695219,3.02796281,3172.6,3172.2,4.4882991]
[1736835695423,4.71508,3172.4,3172.3,0.16368682]
[1736835695743,4.71508,3172.4,3172.0,4.4882991]
[1736835695744,3.1523,3172.3,3172.1,0.32911877]
[1736835695941,0.51093056,3172.2,3172.1,0.32911877]
[1736835697054,0.51093056,3172.2,3172.1,0.62369193]
[1736835698024,3.19179056,3172.2,3172.1,0.62369193]
[1736835698358,5.00469056,3172.2,3172.1,0.62369193]
[1736835699427,3.15278,3171.8,3171.7,0.3154]
[1736835699661,3.19219998,3171.8,3171.7,0.3154]
[1736835700007,3.15304,3171.6,3171.3,0.3154]
[1736835700649,3.624634,3171.6,3171.5,0.3154]
[1736835701101,3.66405348,3171.6,3171.5,0.3154]
[1736835701280,3.624634,3171.6,3171.5,0.3154]
[1736835701619,3.624634,3171.6,3171.5,0.78648809]
[1736835701905,3.66405299,3171.6,3171.5,0.78648809]
[1736835702279,3.15304,3171.6,3171.5,0.78648809]
[1736835702666,3.15304,3171.6,3171.5,0.94586166]
[1736835704494,1.5618,3172.1,3171.6,2.0]
[1736835704692,3.1527,3171.9,3171.6,2.0]
[1736835704873,3.1527,3171.9,3171.7,0.15926273]
[1736835705066,3.62415,3171.9,3171.6,2.0]
[1736835705267,3.62415,3171.9,3171.7,0.15926273]
[1736835705593,3.62415,3171.9,3171.7,0.47108809]
[1736835705764,3.62415,3171.9,3171.8,0.15920732]
[1736835705970,3.15278,3171.8,3171.7,0.47108809]
[1736835706697,3.19219571,3171.8,3171.7,0.47108809]
[1736835707345,3.19219571,3171.8,3171.7,0.63035082]
[1736835707522,3.55856028,3171.8,3171.7,0.63035082]
[1736835708342,5.12036028,3171.8,3171.7,0.63035082]
[1736835708710,5.12036028,3171.8,3171.7,0.76521938]
[1736835709227,3.15328,3171.3,3171.2,0.49021883]
[1736835709413,3.66421549,3171.3,3171.2,0.49021883]
[1736835709621,3.624788,3171.3,3171.2,0.65054284]
[1736835709817,3.624788,3171.3,3171.2,0.16032401]
[1736835711121,3.66421089,3171.3,3171.2,0.16032401]
[1736835711322,0.03942289,3171.3,3171.0,1.5249]
[1736835711524,3.15311,3171.5,3171.2,0.29407597]
[1736835711845,3.15311,3171.5,3171.3,0.1603584]
[1736835712161,3.15311,3171.5,3171.2,0.29407597]
[1736835712320,3.15311,3171.5,3171.3,0.16051412]
[1736835712657,3.15311,3171.5,3171.1,4.4882991]
[1736835712867,1.96758751,3171.8,3171.4,0.16045869]
[1736835713064,3.39679375,3171.7,3171.3,0.2939787]
[1736835713264,3.39679375,3171.7,3171.5,0.16040327]
[1736835713467,3.39679375,3171.7,3171.4,0.16045869]
[1736835713628,3.39679375,3171.7,3171.6,0.160264]
[1736835713972,3.39679375,3171.7,3171.6,0.4542427]
[1736835715943,4.01386166,3171.7,3171.6,0.4542427]
[1736835716566,4.01386166,3171.7,3171.6,0.160264]
[1736835716769,4.01386166,3171.7,3171.2,0.2939787]
[1736835717063,4.01386166,3171.7,3171.3,0.16043027]
[1736835717568,4.01386166,3171.7,3171.4,0.45435354]
[1736835718466,3.15299,3171.6,3171.4,0.45435354]
[1736835718836,3.55437617,3171.6,3171.5,0.2939787]
[1736835719256,3.55437617,3171.6,3171.5,0.45429812]
[1736835719460,5.18217617,3171.6,3171.5,0.45429812]
[1736835719679,5.18217617,3171.6,3171.5,0.92465545]
[1736835719968,5.18217617,3171.6,3171.5,0.63067675]
[1736835720633,5.43217617,3171.6,3171.5,0.63067675]
[1736835721031,5.43217617,3171.6,3171.5,0.16031942]
[1736835721459,3.15318,3171.4,3171.3,0.47035733]
[1736835721659,4.01171562,3171.4,3171.3,0.47035733]
[1736835722270,4.01171562,3171.4,3171.3,0.76433603]
[1736835722466,4.05113846,3171.4,3171.3,0.92486211]
[1736835722767,7.07910127,3171.4,3171.3,0.92486211]
[1736835722970,7.03967843,3171.4,3171.3,1.05888421]
[1736835723171,8.66747843,3171.4,3171.3,0.76490551]
[1736835723573,8.91747843,3171.4,3171.3,0.76490551]
[1736835724671,5.88951562,3171.4,3171.3,0.76490551]
[1736835725587,5.63951562,3171.4,3171.3,0.76490551]
[1736835725741,4.01171562,3171.4,3171.3,0.76490551]
[1736835725950,0.86097166,3171.7,3171.3,0.76490551]
[1736835726292,3.15299,3171.6,3171.3,0.92564722]
[1736835727159,3.19250044,3171.5,3171.4,0.76490551]
[1736835727464,3.15308,3171.5,3171.4,0.92559778]
[1736835727665,3.15308,3171.5,3171.4,0.76490551]
[1736835728182,3.19250016,3171.5,3171.4,0.92559778]
[1736835728355,3.76996791,3171.7,3171.4,0.92559778]
[1736835729587,3.15299,3171.6,3171.4,0.92559778]
[1736835729794,0.61706791,3171.7,3171.5,1.6519]
[1736835730292,0.61706791,3171.7,3171.6,0.16058142]
[1736835730660,0.61706791,3171.7,3171.6,0.92548693]
[1736835731053,0.63912112,3172.0,3171.7,2.0]
[1736835731592,0.63912112,3172.0,3171.8,0.16047059]
[1736835731791,0.63912112,3172.0,3171.9,1.6519]
[1736835731972,3.1523,3172.3,3171.9,1.6519]
[1736835732294,3.1523,3172.3,3171.9,1.811872]
[1736835732595,0.03941112,3172.2,3171.9,1.811872]
[1736835732799,3.1524,3172.2,3171.9,1.811872]
[1736835732980,0.03941109,3172.1,3171.9,1.811872]
[1736835733179,3.15258,3172.0,3171.9,0.159972]
[1736835733398,0.64430131,3172.1,3171.9,0.159972]
[1736835733586,0.64430131,3172.1,3172.0,0.76490551]
[1736835733774,0.64430131,3172.1,3172.0,0.9248221]
[1736835735693,3.15229,3172.3,3172.0,0.9248221]
[1736835736214,0.62684936,3172.2,3172.0,0.9248221]
[1736835736362,0.03941054,3172.1,3172.0,0.9248221]
[1736835739196,3.57375953,3172.1,3172.0,0.9248221]
[1736835739565,3.57376137,3172.1,3172.0,0.9248221]
[1736835739765,3.57376139,3172.1,3172.0,0.9248221]
[1736835740014,0.38186899,3172.1,3172.0,0.9248221]
[1736835740309,0.66626169,3172.2,3172.0,0.9248221]
[1736835740503,3.81865169,3172.2,3172.0,0.9248221]
[1736835740800,3.15248,3172.1,3172.0,0.9248221]
[1736835741513,0.62684936,3172.2,3172.0,0.15991659]
[1736835741811,0.66626116,3172.2,3171.8,1.6519]
[1736835742308,4.16110648,3172.2,3171.9,0.92625779]
[1736835742512,3.15265,3172.0,3171.9,0.92625779]
[1736835750503,1.5031,3172.1,3171.9,0.92625779]
[1736835750708,4.6556,3172.1,3171.9,0.92625779]
[1736835750906,0.62684936,3172.2,3172.0,1.5173]
[1736835751229,0.66626025,3172.2,3172.0,1.67713275]
[1736835752128,0.66626025,3172.2,3172.1,0.76628579]
[1736835752297,0.66626025,3172.2,3172.1,0.92600925]
[1736835752492,0.62684936,3172.2,3172.1,0.92600925]
[1736835760074,0.62684936,3172.2,3172.1,7.41430835]
[1736835760373,3.1517,3172.9,3172.2,4.5173]
[1736835760541,0.31517,3172.8,3172.2,4.5173]
[1736835760745,0.31517,3172.8,3172.3,0.15937915]
[1736835760946,0.63403342,3172.7,3172.2,4.5173]
[1736835761147,0.63403342,3172.7,3172.4,0.15931777]
[1736835761346,0.63403342,3172.7,3172.2,4.5173]
[1736835761671,0.63403342,3172.7,3172.5,0.15926238]
[1736835761968,0.63403342,3172.7,3172.6,3.67650699]